[Event "*** SCC Grand Prix: Titled Tuesday Blitz"]
[Site "Chess.com"]
[Date "2020.08.11"]
[Round "6"]
[White "parintele_chess"]
[Black "peixe64"]
[Result "1-0"]
[WhiteElo "2120"]
[BlackElo "2303"]
[TimeControl "180+1"]
[EndTime "11:08:47 PDT"]
[Termination "parintele_chess won by checkmate"]

1. e4 {[%clk 0:03:00.2]} 1... e5 {[%clk 0:02:59.3]} 2. Nc3 {[%clk 0:02:58.3]}
2... Nf6 {[%clk 0:02:58.5]} 3. Nf3 {[%clk 0:02:58.6]} 3... Nc6 {[%clk
0:02:58.3]} 4. Nxe5 {[%clk 0:02:59.2]} 4... Nxe5 {[%clk 0:02:58.2]} 5. d4 {[%clk
0:02:59.6]} 5... Ng6 {[%clk 0:02:58.3]} 6. e5 {[%clk 0:02:59.5]} 6... Ng8 {[%clk
0:02:55.3]} 7. f4 {[%clk 0:02:59.6]} 7... d6 {[%clk 0:02:49.9]} 8. Bc4 {[%clk
0:02:59.2]} 8... Nh6 {[%clk 0:02:32.6]} 9. O-O {[%clk 0:02:53.7]} 9... c6 {[%clk
0:02:26.1]} 10. d5 {[%clk 0:02:33.1]} 10... dxe5 {[%clk 0:02:23.3]} 11. fxe5
{[%clk 0:02:30.7]} 11... Bc5+ {[%clk 0:02:05.2]} 12. Kh1 {[%clk 0:02:28.2]}
12... Ng4 {[%clk 0:02:05.5]} 13. e6 {[%clk 0:01:56.5]} 13... Qh4 {[%clk
0:01:51.1]} 14. exf7+ {[%clk 0:01:37.6]} 14... Kf8 {[%clk 0:01:45.8]} 15. h3
{[%clk 0:01:36.1]} 15... Qg3 {[%clk 0:01:40.7]} 16. Qxg4 {[%clk 0:00:17.6]}
16... Bxg4 {[%clk 0:01:40.1]} 17. Ne4 {[%clk 0:00:14.2]} 17... Qh4 {[%clk
0:01:25.9]} 18. Nxc5 {[%clk 0:00:13.9]} 18... Bxh3 {[%clk 0:01:11.2]} 19. gxh3
{[%clk 0:00:13.4]} 19... Qxh3+ {[%clk 0:01:10.5]} 20. Kg1 {[%clk 0:00:13.3]}
20... Qg3+ {[%clk 0:01:05.7]} 21. Kh1 {[%clk 0:00:13.4]} 21... Nh4 {[%clk
0:00:48]} 22. Ne6+ {[%clk 0:00:03.6]} 22... Ke7 {[%clk 0:00:48.3]} 23. d6+
{[%clk 0:00:03.9]} 23... Kd7 {[%clk 0:00:32.3]} 24. Nc5+ {[%clk 0:00:04.1]}
24... Kxd6 {[%clk 0:00:23.5]} 25. Ne4+ {[%clk 0:00:03.2]} 25... Ke7 {[%clk
0:00:20.6]} 26. Nxg3 {[%clk 0:00:04.1]} 26... h6 {[%clk 0:00:18.2]} 27. Nf5+
{[%clk 0:00:04]} 27... Nxf5 {[%clk 0:00:17.9]} 28. Rxf5 {[%clk 0:00:04.9]} 28...
Rad8 {[%clk 0:00:18]} 29. Bf4 {[%clk 0:00:05.3]} 29... Rd4 {[%clk 0:00:15.1]}
30. Re1+ {[%clk 0:00:04.6]} 30... Kd8 {[%clk 0:00:14.3]} 31. Be5 {[%clk
0:00:04.3]} 31... Rh4+ {[%clk 0:00:13.9]} 32. Kg2 {[%clk 0:00:03.5]} 32... Rxc4
{[%clk 0:00:14.4]} 33. f8=Q+ {[%clk 0:00:02.5]} 33... Rxf8 {[%clk 0:00:14.5]}
34. Rxf8+ {[%clk 0:00:03.4]} 34... Ke7 {[%clk 0:00:15.2]} 35. Bxg7+ {[%clk
0:00:04]} 35... Kd7 {[%clk 0:00:15.5]} 36. Rf7+ {[%clk 0:00:04.2]} 36... Kd6
{[%clk 0:00:15.7]} 37. Be5+ {[%clk 0:00:04.7]} 37... Kd5 {[%clk 0:00:15.1]} 38.
Bc3 {[%clk 0:00:04.6]} 38... Rg4+ {[%clk 0:00:15.2]} 39. Kf3 {[%clk 0:00:05.1]}
39... Rg6 {[%clk 0:00:16.1]} 40. Re5+ {[%clk 0:00:05.1]} 40... Kd6 {[%clk
0:00:14.5]} 41. Rf4 {[%clk 0:00:05.7]} 41... b5 {[%clk 0:00:14.3]} 42. Rd4+
{[%clk 0:00:06]} 42... Kc7 {[%clk 0:00:14.7]} 43. Re7+ {[%clk 0:00:05.8]} 43...
Kb6 {[%clk 0:00:15]} 44. Rdd7 {[%clk 0:00:06.1]} 44... a5 {[%clk 0:00:12.7]} 45.
Bd4+ {[%clk 0:00:06.3]} 45... c5 {[%clk 0:00:12.9]} 46. Rb7+ {[%clk 0:00:05.9]}
46... Kc6 {[%clk 0:00:13.4]} 47. Rec7+ {[%clk 0:00:05.5]} 47... Kd6 {[%clk
0:00:13.9]} 48. Bxc5+ {[%clk 0:00:05.9]} 48... Kd5 {[%clk 0:00:13.4]} 49. Re7
{[%clk 0:00:06.8]} 49... Rf6+ {[%clk 0:00:13.2]} 50. Ke3 {[%clk 0:00:06.5]}
50... Rg6 {[%clk 0:00:13.1]} 51. Rbc7 {[%clk 0:00:06.4]} 51... Rg3+ {[%clk
0:00:12.1]} 52. Kf4 {[%clk 0:00:06.7]} 52... Rg6 {[%clk 0:00:12.5]} 53. Re5+
{[%clk 0:00:06.7]} 53... Kc4 {[%clk 0:00:11.7]} 54. Be3+ {[%clk 0:00:06.9]}
54... Kb4 {[%clk 0:00:12.1]} 55. c3+ {[%clk 0:00:06.6]} 55... Ka4 {[%clk
0:00:12.2]} 56. b3+ {[%clk 0:00:06.3]} 56... Ka3 {[%clk 0:00:12.4]} 57. Rxb5
{[%clk 0:00:06.6]} 57... Kb2 {[%clk 0:00:12.3]} 58. Rxa5 {[%clk 0:00:06.8]}
58... Rf6+ {[%clk 0:00:13]} 59. Ke5 {[%clk 0:00:06.9]} 59... Rf1 {[%clk
0:00:13.6]} 60. Bxh6 {[%clk 0:00:07.1]} 60... Rd1 {[%clk 0:00:14.5]} 61. c4
{[%clk 0:00:07]} 61... Rd8 {[%clk 0:00:15.3]} 62. Rd5 {[%clk 0:00:07.1]} 62...
Rb8 {[%clk 0:00:16.2]} 63. Kd4 {[%clk 0:00:07.4]} 63... Re8 {[%clk 0:00:17.1]}
64. c5 {[%clk 0:00:07.7]} 64... Re2 {[%clk 0:00:17.8]} 65. Kc4 {[%clk
0:00:07.8]} 65... Re1 {[%clk 0:00:18.2]} 66. Kb4 {[%clk 0:00:07.9]} 66... Re4+
{[%clk 0:00:18.4]} 67. Kb5 {[%clk 0:00:08.1]} 67... Rh4 {[%clk 0:00:18.5]} 68.
c6 {[%clk 0:00:08.4]} 68... Rxh6 {[%clk 0:00:18.9]} 69. Ra7 {[%clk 0:00:08.1]}
69... Rh5 {[%clk 0:00:19.3]} 70. Rxh5 {[%clk 0:00:08]} 70... Kc3 {[%clk
0:00:19.3]} 71. c7 {[%clk 0:00:08.3]} 71... Kb2 {[%clk 0:00:20.2]} 72. c8=Q
{[%clk 0:00:08]} 72... Kb1 {[%clk 0:00:21.1]} 73. Qg4 {[%clk 0:00:06.4]} 73...
Kb2 {[%clk 0:00:22]} 74. Qg2+ {[%clk 0:00:06.3]} 74... Kb1 {[%clk 0:00:22.4]}
75. Rh1# {[%clk 0:00:06.4]} 1-0

[Event "*** SCC Grand Prix: Titled Tuesday Blitz"]
[Site "Chess.com"]
[Date "2020.08.11"]
[Round "6"]
[White "tsvet2005"]
[Black "GiantThresher"]
[Result "1/2-1/2"]
[WhiteElo "2588"]
[BlackElo "2716"]
[TimeControl "180+1"]
[EndTime "11:08:52 PDT"]
[Termination "Game drawn by agreement"]

1. d4 {[%clk 0:03:00.9]} 1... Nf6 {[%clk 0:02:59.7]} 2. c4 {[%clk 0:03:01.5]}
2... g6 {[%clk 0:02:59.5]} 3. Nc3 {[%clk 0:03:01.4]} 3... Bg7 {[%clk 0:03:00]}
4. e4 {[%clk 0:03:01.6]} 4... d6 {[%clk 0:02:57.6]} 5. Be2 {[%clk 0:03:01.9]}
5... O-O {[%clk 0:02:57.4]} 6. Be3 {[%clk 0:03:02.4]} 6... e5 {[%clk 0:02:56.2]}
7. d5 {[%clk 0:03:02.5]} 7... Na6 {[%clk 0:02:38.8]} 8. h4 {[%clk 0:03:01.5]}
8... Nc5 {[%clk 0:02:29.9]} 9. Qc2 {[%clk 0:03:01.4]} 9... c6 {[%clk 0:02:26.7]}
10. h5 {[%clk 0:02:58.8]} 10... cxd5 {[%clk 0:02:23.6]} 11. cxd5 {[%clk
0:02:59.7]} 11... Qa5 {[%clk 0:02:24.3]} 12. h6 {[%clk 0:02:54.6]} 12... Bh8
{[%clk 0:02:23.6]} 13. f3 {[%clk 0:02:48.2]} 13... Nh5 {[%clk 0:02:20]} 14. Rxh5
{[%clk 0:02:41]} 14... gxh5 {[%clk 0:02:20.9]} 15. Qd2 {[%clk 0:02:41.4]} 15...
Nb3 {[%clk 0:02:13.2]} 16. Bb6 {[%clk 0:02:21.3]} 16... Nxd2 {[%clk 0:01:20.9]}
17. Bxa5 {[%clk 0:02:13.7]} 17... Bf6 {[%clk 0:01:19.5]} 18. Kxd2 {[%clk
0:02:01.2]} 18... Bg5+ {[%clk 0:01:19.7]} 19. Kd1 {[%clk 0:01:56.1]} 19... f5
{[%clk 0:01:05.1]} 20. Bb4 {[%clk 0:01:45.4]} 20... Be7 {[%clk 0:00:55.7]} 21.
exf5 {[%clk 0:01:32.6]} 21... Bxf5 {[%clk 0:00:54.5]} 22. Ne4 {[%clk 0:01:33]}
22... Rac8 {[%clk 0:00:37.8]} 23. Bxd6 {[%clk 0:01:00.7]} 23... Kf7 {[%clk
0:00:34.5]} 24. Bxe5 {[%clk 0:00:50.6]} 24... Rfd8 {[%clk 0:00:34.1]} 25. Nc3
{[%clk 0:00:42.8]} 25... Bf6 {[%clk 0:00:34.3]} 26. Bxf6 {[%clk 0:00:39.4]}
26... Kxf6 {[%clk 0:00:35.2]} 27. Ke1 {[%clk 0:00:34.3]} 27... Kg5 {[%clk
0:00:32.3]} 28. Kf2 {[%clk 0:00:33.2]} 28... Kxh6 {[%clk 0:00:32]} 29. Rd1
{[%clk 0:00:33.7]} 29... h4 {[%clk 0:00:30.8]} 30. Nh3 {[%clk 0:00:29.8]} 30...
a6 {[%clk 0:00:23.1]} 31. Rd4 {[%clk 0:00:29]} 31... Kh5 {[%clk 0:00:22.7]} 32.
Nf4+ {[%clk 0:00:24.1]} 32... Kg5 {[%clk 0:00:22.2]} 33. Nh3+ {[%clk 0:00:20.8]}
33... Kh5 {[%clk 0:00:21.4]} 34. f4+ {[%clk 0:00:21.2]} 34... Kg6 {[%clk
0:00:21.1]} 35. Ng5 {[%clk 0:00:20.4]} 35... b5 {[%clk 0:00:19.8]} 36. Nf3
{[%clk 0:00:20.4]} 36... h3 {[%clk 0:00:19]} 37. gxh3 {[%clk 0:00:20.1]} 37...
Bxh3 {[%clk 0:00:19.2]} 38. Ne5+ {[%clk 0:00:20.8]} 38... Kf6 {[%clk 0:00:19.4]}
39. Ne4+ {[%clk 0:00:20.4]} 39... Kf5 {[%clk 0:00:18.6]} 40. Ng3+ {[%clk
0:00:19.7]} 40... Kf6 {[%clk 0:00:18.5]} 41. Ne4+ {[%clk 0:00:17.2]} 41... Kf5
{[%clk 0:00:18.7]} 42. Kg3 {[%clk 0:00:17.6]} 42... Rg8+ {[%clk 0:00:16.9]} 43.
Kxh3 {[%clk 0:00:17.4]} 43... Kxf4 {[%clk 0:00:17.8]} 44. Nc6 {[%clk 0:00:09]}
44... Ke3 {[%clk 0:00:17.3]} 45. Bg4 {[%clk 0:00:06.7]} 45... Rcf8 {[%clk
0:00:15.5]} 46. Rd1 {[%clk 0:00:04.5]} 46... Kxe4 {[%clk 0:00:14.7]} 47. d6
{[%clk 0:00:04.8]} 47... Rg6 {[%clk 0:00:12.7]} 48. d7 {[%clk 0:00:03.4]} 48...
Rxc6 {[%clk 0:00:12.9]} 49. d8=Q {[%clk 0:00:03.1]} 49... Rxd8 {[%clk
0:00:13.4]} 50. Rxd8 {[%clk 0:00:04]} 50... Rc2 {[%clk 0:00:14.3]} 51. Rd6
{[%clk 0:00:03.2]} 51... a5 {[%clk 0:00:13.5]} 52. Ra6 {[%clk 0:00:03.3]} 52...
a4 {[%clk 0:00:11.9]} 53. Be6 {[%clk 0:00:01.8]} 53... Rxb2 {[%clk 0:00:10.6]}
54. Kg3 {[%clk 0:00:02.4]} 54... Kd4 {[%clk 0:00:10.2]} 55. Bg8 {[%clk
0:00:02.9]} 55... h5 {[%clk 0:00:09.8]} 56. Rd6+ {[%clk 0:00:03.2]} 56... Kc5
{[%clk 0:00:08.9]} 57. Rd8 {[%clk 0:00:03.5]} 57... b4 {[%clk 0:00:08.6]} 58.
Rc8+ {[%clk 0:00:03.8]} 58... Kb6 {[%clk 0:00:08.1]} 59. Rb8+ {[%clk 0:00:03.9]}
59... Ka5 {[%clk 0:00:08.7]} 60. Ra8+ {[%clk 0:00:04.1]} 60... Kb5 {[%clk
0:00:09]} 61. Rb8+ {[%clk 0:00:04.6]} 61... Kc5 {[%clk 0:00:09.5]} 62. Rc8+
{[%clk 0:00:04.1]} 62... Kd4 {[%clk 0:00:09.9]} 63. Rc4+ {[%clk 0:00:03.8]}
63... Kd3 {[%clk 0:00:10.4]} 64. Rc5 {[%clk 0:00:03.6]} 64... b3 {[%clk
0:00:04.6]} 65. axb3 {[%clk 0:00:04.5]} 65... a3 {[%clk 0:00:05]} 66. Ra5 {[%clk
0:00:04]} 66... a2 {[%clk 0:00:04.9]} 67. b4 {[%clk 0:00:01.8]} 67... Rxb4
{[%clk 0:00:05.8]} 68. Rxa2 {[%clk 0:00:02]} 68... Rg4+ {[%clk 0:00:06]} 69. Kh3
{[%clk 0:00:02.6]} 69... Rxg8 {[%clk 0:00:06.9]} 70. Ra5 {[%clk 0:00:03.3]}
70... h4 {[%clk 0:00:06.5]} 71. Rh5 {[%clk 0:00:03.5]} 71... Ke4 {[%clk
0:00:06.4]} 72. Rxh4+ {[%clk 0:00:04]} 72... Kf3 {[%clk 0:00:06.9]} 73. Rh7
{[%clk 0:00:02.6]} 73... Rg1 {[%clk 0:00:06.2]} 1/2-1/2

[Event "*** SCC Grand Prix: Titled Tuesday Blitz"]
[Site "Chess.com"]
[Date "2020.08.11"]
[Round "6"]
[White "ItsCheckM8Mate"]
[Black "szachuspl"]
[Result "1-0"]
[WhiteElo "2327"]
[BlackElo "2511"]
[TimeControl "180+1"]
[EndTime "11:08:58 PDT"]
[Termination "ItsCheckM8Mate won on time"]

1. e4 {[%clk 0:03:00.9]} 1... c5 {[%clk 0:02:56.5]} 2. Nf3 {[%clk 0:03:01]} 2...
e6 {[%clk 0:02:56]} 3. d4 {[%clk 0:03:01.3]} 3... cxd4 {[%clk 0:02:55.9]} 4.
Nxd4 {[%clk 0:03:02.2]} 4... Nf6 {[%clk 0:02:52.9]} 5. Nc3 {[%clk 0:03:01.7]}
5... d6 {[%clk 0:02:53.4]} 6. g4 {[%clk 0:02:55.5]} 6... h6 {[%clk 0:02:52.6]}
7. Rg1 {[%clk 0:02:54.7]} 7... Nc6 {[%clk 0:02:51.4]} 8. h4 {[%clk 0:02:52.1]}
8... d5 {[%clk 0:02:50.4]} 9. exd5 {[%clk 0:02:26.9]} 9... Nxd5 {[%clk
0:02:49.9]} 10. Nxd5 {[%clk 0:02:24.9]} 10... exd5 {[%clk 0:02:50.2]} 11. Be3
{[%clk 0:02:20.5]} 11... Qxh4 {[%clk 0:02:40.3]} 12. Qf3 {[%clk 0:02:19.8]}
12... Nxd4 {[%clk 0:02:34.7]} 13. Bxd4 {[%clk 0:02:18.8]} 13... Qe7+ {[%clk
0:02:34.2]} 14. Be2 {[%clk 0:02:10.1]} 14... Qe4 {[%clk 0:02:32.7]} 15. O-O-O
{[%clk 0:02:06]} 15... a6 {[%clk 0:02:01.4]} 16. Rge1 {[%clk 0:01:59.7]} 16...
Be6 {[%clk 0:01:56.2]} 17. Bb5+ {[%clk 0:01:56.2]} 17... axb5 {[%clk 0:01:51.6]}
18. Rxe4 {[%clk 0:01:56.2]} 18... dxe4 {[%clk 0:01:51.8]} 19. Qxe4 {[%clk
0:01:56.2]} 19... O-O-O {[%clk 0:01:50.4]} 20. Be5 {[%clk 0:01:32]} 20... Rxd1+
{[%clk 0:01:49.1]} 21. Kxd1 {[%clk 0:01:31.3]} 21... Bc5 {[%clk 0:01:46]} 22.
Kc1 {[%clk 0:01:07.7]} 22... Rg8 {[%clk 0:01:17.8]} 23. a3 {[%clk 0:00:59]}
23... g6 {[%clk 0:01:10.7]} 24. Bf4 {[%clk 0:00:51.5]} 24... Rd8 {[%clk
0:01:01.3]} 25. Qe5 {[%clk 0:00:46.6]} 25... Bd6 {[%clk 0:01:00.7]} 26. Qc3+
{[%clk 0:00:42]} 26... Kb8 {[%clk 0:01:00.8]} 27. Bxd6+ {[%clk 0:00:31.1]} 27...
Rxd6 {[%clk 0:01:00.7]} 28. Qh8+ {[%clk 0:00:31]} 28... Kc7 {[%clk 0:01:00.5]}
29. Qxh6 {[%clk 0:00:30]} 29... Bxg4 {[%clk 0:00:57.6]} 30. Qf4 {[%clk
0:00:29.7]} 30... Be6 {[%clk 0:00:57.4]} 31. b3 {[%clk 0:00:28.5]} 31... Kc6
{[%clk 0:00:56.6]} 32. Kb2 {[%clk 0:00:28.3]} 32... Rd5 {[%clk 0:00:56.4]} 33.
c4 {[%clk 0:00:26.3]} 33... bxc4 {[%clk 0:00:56.5]} 34. Qxc4+ {[%clk 0:00:25.5]}
34... Rc5 {[%clk 0:00:55.9]} 35. Qe4+ {[%clk 0:00:25.4]} 35... Rd5 {[%clk
0:00:55.9]} 36. b4 {[%clk 0:00:25]} 36... b5 {[%clk 0:00:54.8]} 37. Kc3 {[%clk
0:00:23.4]} 37... Kd6 {[%clk 0:00:54.1]} 38. Qf4+ {[%clk 0:00:23.3]} 38... Ke7
{[%clk 0:00:53.7]} 39. Qc7+ {[%clk 0:00:22.4]} 39... Kf6 {[%clk 0:00:53.2]} 40.
Qf4+ {[%clk 0:00:22.3]} 40... Kg7 {[%clk 0:00:53.3]} 41. Kb2 {[%clk 0:00:20.5]}
41... g5 {[%clk 0:00:53.2]} 42. Qe3 {[%clk 0:00:19.8]} 42... Rf5 {[%clk
0:00:53.2]} 43. Qd4+ {[%clk 0:00:19.6]} 43... Kg6 {[%clk 0:00:53.2]} 44. a4
{[%clk 0:00:18.6]} 44... bxa4 {[%clk 0:00:53.1]} 45. Ka3 {[%clk 0:00:18.9]}
45... Rf4 {[%clk 0:00:46.8]} 46. Qd3+ {[%clk 0:00:18.1]} 46... Bf5 {[%clk
0:00:47.1]} 47. Qd6+ {[%clk 0:00:17.6]} 47... Be6 {[%clk 0:00:46]} 48. Qc5
{[%clk 0:00:16.9]} 48... Rc4 {[%clk 0:00:40.1]} 49. Qe3 {[%clk 0:00:15.3]} 49...
Rf4 {[%clk 0:00:33.5]} 50. b5 {[%clk 0:00:14.7]} 50... Bd5 {[%clk 0:00:28.8]}
51. Qd3+ {[%clk 0:00:14.7]} 51... Be4 {[%clk 0:00:28.1]} 52. Qd2 {[%clk
0:00:14]} 52... Rf5 {[%clk 0:00:19.1]} 53. b6 {[%clk 0:00:13.2]} 53... Rb5
{[%clk 0:00:17.4]} 54. Qd4 {[%clk 0:00:13.2]} 54... f5 {[%clk 0:00:14.9]} 55.
Kxa4 {[%clk 0:00:12.7]} 55... Rb1 {[%clk 0:00:15.1]} 56. Qd6+ {[%clk 0:00:12.4]}
56... Kh5 {[%clk 0:00:14.9]} 57. Qh2+ {[%clk 0:00:12]} 57... Kg6 {[%clk
0:00:13.8]} 58. Qc7 {[%clk 0:00:11.8]} 58... g4 {[%clk 0:00:13.3]} 59. Qd6+
{[%clk 0:00:11.2]} 59... Kg5 {[%clk 0:00:13.4]} 60. Ka5 {[%clk 0:00:10.9]} 60...
Kh4 {[%clk 0:00:12.9]} 61. Qg3+ {[%clk 0:00:10.7]} 61... Kg5 {[%clk 0:00:12.8]}
62. Qe3+ {[%clk 0:00:11]} 62... Kf6 {[%clk 0:00:11.7]} 63. Ka6 {[%clk
0:00:10.7]} 63... Ke5 {[%clk 0:00:11.6]} 64. Ka7 {[%clk 0:00:10.3]} 64... Ra1+
{[%clk 0:00:11.1]} 65. Kb8 {[%clk 0:00:10.3]} 65... Rb1 {[%clk 0:00:10.6]} 66.
Qc5+ {[%clk 0:00:09.4]} 66... Kf4 {[%clk 0:00:09.6]} 67. Qe3+ {[%clk 0:00:08.7]}
67... Ke5 {[%clk 0:00:10.1]} 68. Qc5+ {[%clk 0:00:08.8]} 68... Kf6 {[%clk
0:00:10.4]} 69. Kc7 {[%clk 0:00:08.7]} 69... Kg5 {[%clk 0:00:09.7]} 70. Qe3+
{[%clk 0:00:08.5]} 70... Kh4 {[%clk 0:00:08.9]} 71. Kd6 {[%clk 0:00:08.5]} 71...
Rb5 {[%clk 0:00:07.3]} 72. Ke6 {[%clk 0:00:08.2]} 72... Kh5 {[%clk 0:00:04.3]}
73. Kf6 {[%clk 0:00:08.2]} 1-0

[Event "*** SCC Grand Prix: Titled Tuesday Blitz"]
[Site "Chess.com"]
[Date "2020.08.11"]
[Round "6"]
[White "IANOV0007"]
[Black "Chessalary"]
[Result "1-0"]
[WhiteElo "2473"]
[BlackElo "2286"]
[TimeControl "180+1"]
[EndTime "11:09:01 PDT"]
[Termination "IANOV0007 won by checkmate"]

1. Nf3 {[%clk 0:03:00.9]} 1... d5 {[%clk 0:02:59.9]} 2. g3 {[%clk 0:03:00.8]}
2... c6 {[%clk 0:03:00.6]} 3. Bg2 {[%clk 0:03:00.8]} 3... Nf6 {[%clk 0:03:01.2]}
4. d3 {[%clk 0:03:00.8]} 4... Bg4 {[%clk 0:03:01.1]} 5. Nbd2 {[%clk 0:02:59.7]}
5... Nbd7 {[%clk 0:03:01.1]} 6. h3 {[%clk 0:02:59.1]} 6... Bh5 {[%clk
0:03:00.3]} 7. O-O {[%clk 0:02:56.9]} 7... e5 {[%clk 0:02:59.7]} 8. e4 {[%clk
0:02:56.8]} 8... Bd6 {[%clk 0:02:57.1]} 9. Qe1 {[%clk 0:02:55.2]} 9... O-O
{[%clk 0:02:56.4]} 10. Nh4 {[%clk 0:02:55.1]} 10... Bg6 {[%clk 0:02:42.3]} 11.
Nxg6 {[%clk 0:02:53.8]} 11... hxg6 {[%clk 0:02:43.2]} 12. a4 {[%clk 0:02:51.7]}
12... Re8 {[%clk 0:02:41.2]} 13. Qe2 {[%clk 0:02:50.8]} 13... Nf8 {[%clk
0:02:40.7]} 14. Nb3 {[%clk 0:02:47.6]} 14... Ne6 {[%clk 0:02:39.1]} 15. Bd2
{[%clk 0:02:45.3]} 15... dxe4 {[%clk 0:02:33.9]} 16. dxe4 {[%clk 0:02:44.5]}
16... Qc7 {[%clk 0:02:26.5]} 17. Bc3 {[%clk 0:02:42.6]} 17... Rad8 {[%clk
0:02:20.4]} 18. Rfd1 {[%clk 0:02:42.1]} 18... Nd7 {[%clk 0:02:06.6]} 19. a5
{[%clk 0:02:37.8]} 19... a6 {[%clk 0:01:59]} 20. Nd2 {[%clk 0:02:34.9]} 20...
Ndc5 {[%clk 0:01:48.8]} 21. Nc4 {[%clk 0:02:32.6]} 21... Nd4 {[%clk 0:01:39.4]}
22. Bxd4 {[%clk 0:02:24.4]} 22... exd4 {[%clk 0:01:40.3]} 23. Rxd4 {[%clk
0:02:17.9]} 23... Bxg3 {[%clk 0:01:39.8]} 24. Rxd8 {[%clk 0:02:13.7]} 24... Bh2+
{[%clk 0:01:39]} 25. Kh1 {[%clk 0:02:13.4]} 25... Rxd8 {[%clk 0:01:39.9]} 26. e5
{[%clk 0:02:07.1]} 26... Bf4 {[%clk 0:01:39]} 27. b4 {[%clk 0:02:00.7]} 27...
Ne6 {[%clk 0:01:37.1]} 28. c3 {[%clk 0:01:55.4]} 28... Qe7 {[%clk 0:01:28.4]}
29. Rd1 {[%clk 0:01:44.5]} 29... Rxd1+ {[%clk 0:01:23.5]} 30. Qxd1 {[%clk
0:01:44]} 30... Qg5 {[%clk 0:01:17.3]} 31. Qd6 {[%clk 0:01:36.3]} 31... Qh4
{[%clk 0:00:58.7]} 32. Kg1 {[%clk 0:01:25.8]} 32... Ng5 {[%clk 0:00:58.7]} 33.
Qd8+ {[%clk 0:01:17.6]} 33... Kh7 {[%clk 0:00:58]} 34. Kf1 {[%clk 0:01:17]}
34... Qh5 {[%clk 0:00:40.8]} 35. Qd3 {[%clk 0:01:09.4]} 35... Ne6 {[%clk
0:00:36.8]} 36. Qf3 {[%clk 0:01:03]} 36... Qxf3 {[%clk 0:00:35.2]} 37. Bxf3
{[%clk 0:01:02.4]} 37... f6 {[%clk 0:00:28.3]} 38. exf6 {[%clk 0:00:50.2]} 38...
gxf6 {[%clk 0:00:29.2]} 39. Ke2 {[%clk 0:00:47.5]} 39... Kg7 {[%clk 0:00:26]}
40. Kd3 {[%clk 0:00:46.7]} 40... f5 {[%clk 0:00:22.7]} 41. h4 {[%clk 0:00:46]}
41... Kf6 {[%clk 0:00:21.4]} 42. Nb6 {[%clk 0:00:44.7]} 42... Ke7 {[%clk
0:00:17.8]} 43. c4 {[%clk 0:00:40.4]} 43... Kd8 {[%clk 0:00:16.8]} 44. c5 {[%clk
0:00:40.2]} 44... Kc7 {[%clk 0:00:15.5]} 45. Nc4 {[%clk 0:00:40.1]} 45... Kd7
{[%clk 0:00:15.1]} 46. h5 {[%clk 0:00:39.6]} 46... gxh5 {[%clk 0:00:14.9]} 47.
Bxh5 {[%clk 0:00:39.4]} 47... Bg5 {[%clk 0:00:13.4]} 48. Bd1 {[%clk 0:00:37.1]}
48... Bf6 {[%clk 0:00:12.9]} 49. Bf3 {[%clk 0:00:31.7]} 49... Kc7 {[%clk
0:00:11.1]} 50. Bd1 {[%clk 0:00:26.7]} 50... Ng7 {[%clk 0:00:10.4]} 51. Nd6
{[%clk 0:00:26]} 51... Be5 {[%clk 0:00:09.1]} 52. Nc4 {[%clk 0:00:25.8]} 52...
Bf6 {[%clk 0:00:08.9]} 53. f4 {[%clk 0:00:25.5]} 53... Be7 {[%clk 0:00:07.9]}
54. Ne3 {[%clk 0:00:24.5]} 54... Bf6 {[%clk 0:00:07.6]} 55. Bc2 {[%clk
0:00:24.2]} 55... Kd7 {[%clk 0:00:08]} 56. Kc4 {[%clk 0:00:24]} 56... Kc7 {[%clk
0:00:08.2]} 57. Bxf5 {[%clk 0:00:23.4]} 57... Nxf5 {[%clk 0:00:08.8]} 58. Nxf5
{[%clk 0:00:23.2]} 58... Kd7 {[%clk 0:00:09.2]} 59. Nd6 {[%clk 0:00:21.6]} 59...
Kc7 {[%clk 0:00:09.6]} 60. f5 {[%clk 0:00:21.8]} 60... Be5 {[%clk 0:00:07.9]}
61. Ne4 {[%clk 0:00:21.6]} 61... Kd7 {[%clk 0:00:06.8]} 62. Ng5 {[%clk
0:00:20.5]} 62... Bf4 {[%clk 0:00:04.9]} 63. Ne6 {[%clk 0:00:20.5]} 63... Ke7
{[%clk 0:00:04.8]} 64. Nxf4 {[%clk 0:00:20]} 64... Kf6 {[%clk 0:00:05.7]} 65.
Ne6 {[%clk 0:00:20.1]} 65... Kxf5 {[%clk 0:00:06.6]} 66. Nd8 {[%clk 0:00:20.3]}
66... Ke5 {[%clk 0:00:07.2]} 67. Nxb7 {[%clk 0:00:20.3]} 67... Kf6 {[%clk
0:00:08.1]} 68. Nd8 {[%clk 0:00:20.3]} 68... Ke7 {[%clk 0:00:09]} 69. Nxc6+
{[%clk 0:00:20.6]} 69... Kd7 {[%clk 0:00:09.9]} 70. b5 {[%clk 0:00:20.9]} 70...
Kc7 {[%clk 0:00:10.8]} 71. Kb4 {[%clk 0:00:19.3]} 71... Kb7 {[%clk 0:00:10.4]}
72. Nd4 {[%clk 0:00:19]} 72... Ka7 {[%clk 0:00:09.8]} 73. b6+ {[%clk 0:00:18.7]}
73... Kb8 {[%clk 0:00:10.7]} 74. c6 {[%clk 0:00:19]} 74... Ka8 {[%clk
0:00:10.7]} 75. Nb5 {[%clk 0:00:19]} 75... Kb8 {[%clk 0:00:10.7]} 76. c7+ {[%clk
0:00:18.9]} 76... Kb7 {[%clk 0:00:10.6]} 77. Nd6+ {[%clk 0:00:19]} 77... Kc6
{[%clk 0:00:09.2]} 78. c8=Q+ {[%clk 0:00:18.7]} 78... Kd5 {[%clk 0:00:10.1]} 79.
Qxa6 {[%clk 0:00:18.5]} 79... Ke5 {[%clk 0:00:10.6]} 80. Qd3 {[%clk 0:00:18.3]}
80... Ke6 {[%clk 0:00:11.5]} 81. Kc5 {[%clk 0:00:18.3]} 81... Kd7 {[%clk
0:00:12.4]} 82. Nc4+ {[%clk 0:00:18.3]} 82... Ke6 {[%clk 0:00:13]} 83. Qe4+
{[%clk 0:00:18]} 83... Kd7 {[%clk 0:00:13.9]} 84. Qg6 {[%clk 0:00:17.6]} 84...
Kc8 {[%clk 0:00:13.6]} 85. Qf7 {[%clk 0:00:17.4]} 85... Kb8 {[%clk 0:00:13.2]}
86. Kc6 {[%clk 0:00:17.3]} 86... Ka8 {[%clk 0:00:13.2]} 87. Qb7# {[%clk
0:00:17]} 1-0